bitfinex/quotes_BTCUSD_20250825
["timestamp","ask_amount","ask_price","bid_price","bid_amount"]
[1756081734120,0.70725091,113350.0,113340.0,0.23964475]
[1756081734322,0.70725091,113350.0,113340.0,0.14190483]
[1756081734643,0.70725091,113350.0,113340.0,0.29262483]
[1756081735661,0.88369555,113350.0,113340.0,0.29262483]
[1756081736084,1.37441555,113350.0,113340.0,0.002]
[1756081736503,1.40094755,113350.0,113340.0,0.002]
[1756081736708,1.47204918,113350.0,113340.0,0.002]
[1756081736910,5.82124655,113350.0,113340.0,0.002]
[1756081737125,0.17647577,113330.0,113310.0,0.0683775]
[1756081737417,0.87316892,113320.0,113310.0,0.20563347]
[1756081737635,0.00516,113320.0,113310.0,0.20563347]
[1756081737828,0.69667757,113320.0,113310.0,0.20758347]
[1756081737966,0.69667757,113320.0,113310.0,0.35635347]
[1756081738614,0.69667757,113320.0,113310.0,0.35830347]
[1756081738813,0.69667757,113320.0,113310.0,0.20758347]
[1756081738960,0.69667757,113320.0,113310.0,0.35930347]
[1756081739164,0.69667757,113320.0,113310.0,0.20663347]
[1756081739368,0.69667757,113320.0,113310.0,0.30698225]
[1756081739626,0.69667757,113320.0,113310.0,0.30798225]
[1756081739838,0.69667757,113320.0,113310.0,0.30898225]
[1756081740792,0.00516,113320.0,113310.0,0.30898225]
[1756081740994,0.69667757,113320.0,113310.0,0.35841394]
[1756081741430,1.56468649,113320.0,113310.0,0.0713775]
[1756081741636,0.18165135,113320.0,113310.0,0.1542175]
[1756081741829,1.56468649,113320.0,113310.0,0.1542175]
[1756081742755,1.56468649,113320.0,113310.0,0.0004975]
[1756081742953,1.56468649,113320.0,113310.0,0.1512175]
[1756081743156,1.56468649,113320.0,113310.0,0.1532175]
[1756081743412,1.56468649,113320.0,113310.0,0.1522175]
[1756081743616,1.56468649,113320.0,113310.0,0.1512175]
[1756081743875,0.18165135,113320.0,113310.0,0.1522175]
[1756081744152,1.56468649,113320.0,113310.0,0.16743925]
[1756081744523,0.87316892,113320.0,113310.0,0.16743925]
[1756081744706,0.87316892,113320.0,113310.0,0.1522175]
[1756081744906,0.87316892,113320.0,113310.0,0.1532175]
[1756081748028,0.87289892,113320.0,113310.0,0.1532175]
[1756081749329,0.87289892,113320.0,113310.0,0.0024975]
[1756081749552,0.87289892,113320.0,113310.0,0.1532175]
[1756081749745,0.87289892,113320.0,113310.0,0.18619141]
[1756081750267,0.87289892,113320.0,113310.0,0.1532175]
[1756081750476,0.88671046,113320.0,113310.0,0.1532175]
[1756081750905,0.87289892,113320.0,113310.0,0.1532175]
[1756081751548,0.69640757,113320.0,113310.0,0.1532175]
[1756081751758,0.69640757,113320.0,113310.0,0.32972442]
[1756081751973,0.369596,113330.0,113310.0,0.47212381]
[1756081752182,0.69151757,113320.0,113310.0,0.47212381]
[1756081752385,0.69667757,113320.0,113310.0,0.24205225]
[1756081752806,0.69667757,113320.0,113310.0,0.41755917]
[1756081752999,0.69361757,113320.0,113310.0,0.41755917]
[1756081753553,0.69361757,113320.0,113310.0,0.41655917]
[1756081753963,0.69667757,113320.0,113310.0,0.24105225]
[1756081754166,0.87316892,113320.0,113310.0,0.1512175]
[1756081754362,0.69361757,113320.0,113310.0,0.36494858]
[1756081754607,0.69361757,113320.0,113310.0,0.451627]
[1756081754941,0.69361757,113320.0,113310.0,0.27512008]
[1756081755348,0.69361757,113320.0,113310.0,0.27612008]
[1756081755849,0.69361757,113320.0,113310.0,0.452627]
[1756081756783,0.69151757,113320.0,113310.0,0.455567]
[1756081757593,0.69151757,113320.0,113310.0,0.452627]
[1756081758018,0.53412701,113330.0,113310.0,0.455567]
[1756081758203,0.69151757,113320.0,113310.0,0.455567]
[1756081758984,0.69151757,113320.0,113310.0,0.452567]
[1756081759389,0.69151757,113320.0,113310.0,0.453567]
[1756081759589,0.69151757,113320.0,113310.0,0.452567]
[1756081759829,0.69151757,113320.0,113310.0,0.454567]
[1756081760336,0.69151757,113320.0,113310.0,0.451627]
[1756081760969,0.69361757,113320.0,113310.0,0.451627]
[1756081761302,0.69667757,113320.0,113310.0,0.24010225]
[1756081761529,0.87316892,113320.0,113310.0,0.08938225]
[1756081761736,0.87316892,113320.0,113310.0,0.24110225]
[1756081762632,1.02384892,113320.0,113310.0,0.0034975]
[1756081762836,1.02384892,113320.0,113310.0,0.1541775]
[1756081763775,0.84735757,113320.0,113310.0,0.1541775]
[1756081763976,1.02384892,113320.0,113310.0,0.1541775]
[1756081764188,0.84735757,113320.0,113310.0,0.0034975]
[1756081764952,1.02384892,113320.0,113310.0,0.0034975]
[1756081766988,0.84735757,113320.0,113310.0,0.0034975]
[1756081767397,0.15584,113320.0,113310.0,0.18209442]
[1756081767600,0.84735757,113320.0,113310.0,0.23509078]
[1756081767984,0.84735757,113320.0,113310.0,0.05649386]
[1756081768190,0.84735757,113320.0,113310.0,0.0034975]
[1756081768811,0.84735757,113320.0,113310.0,0.18000442]
[1756081769022,0.84735757,113320.0,113310.0,0.0034975]
[1756081769891,1.02384892,113320.0,113310.0,0.0034975]
[1756081771759,6.47566549,113320.0,113310.0,0.0034975]
[1756081772145,6.50220249,113320.0,113310.0,0.0034975]
[1756081772352,6.50220249,113320.0,113310.0,0.0024975]
[1756081772915,6.50220249,113320.0,113310.0,0.0004975]
[1756081773154,6.50320249,113320.0,113310.0,0.0004975]
[1756081773377,6.57108249,113320.0,113310.0,0.0004975]
[1756081773593,6.65796724,113320.0,113310.0,0.0004975]
[1756081774242,6.67178067,113320.0,113310.0,0.0004975]
[1756081774666,6.67278067,113320.0,113310.0,0.0004975]
[1756081775942,6.52210067,113320.0,113310.0,0.0004975]
[1756081776168,6.67278067,113320.0,113310.0,0.0004975]
[1756081776773,7.12118067,113320.0,113310.0,0.0004975]
[1756081777498,7.13755123,113320.0,113310.0,0.0004975]
[1756081778355,7.11918067,113320.0,113310.0,0.0004975]
[1756081778786,7.12418067,113320.0,113310.0,0.0004975]
[1756081779018,7.12118067,113320.0,113310.0,0.0004975]
[1756081779222,7.11918067,113320.0,113310.0,0.0004975]
[1756081779363,6.97150067,113320.0,113310.0,0.0004975]
[1756081779583,7.12418067,113320.0,113310.0,0.0004975]
[1756081780592,7.11036724,113320.0,113310.0,0.0004975]
[1756081781039,7.1539396,113320.0,113310.0,0.0004975]
[1756081781247,6.98581058,113320.0,113310.0,0.0004975]
[1756081781454,7.11036724,113320.0,113310.0,0.0004975]
[1756081783802,7.12418136,113320.0,113310.0,0.0004975]
[1756081784040,6.78418136,113320.0,113310.0,0.0025875]
[1756081784244,6.78112136,113320.0,113310.0,0.0025875]
[1756081784640,6.88355661,113320.0,113310.0,0.0025875]
[1756081784842,7.03720661,113320.0,113310.0,0.0025875]
[1756081785062,7.03720661,113320.0,113310.0,0.0004975]
[1756081785215,7.03220661,113320.0,113310.0,0.0004975]
[1756081785419,7.03520661,113320.0,113310.0,0.0004975]
[1756081786097,5.65217147,113320.0,113310.0,0.0004975]
[1756081786308,7.03520661,113320.0,113310.0,0.0004975]
[1756081786831,7.03320661,113320.0,113310.0,0.0004975]
[1756081787248,5.65017147,113320.0,113310.0,0.0004975]
[1756081787455,7.03320661,113320.0,113310.0,0.0004975]
[1756081787780,7.03420661,113320.0,113310.0,0.0004975]
[1756081793673,7.85618129,113320.0,113310.0,0.0004975]
[1756081793924,6.95659724,113320.0,113310.0,0.0004975]
[1756081794131,7.10727724,113320.0,113310.0,0.0004975]
[1756081795791,6.89122489,113320.0,113310.0,0.0004975]
[1756081796004,7.06975624,113320.0,113310.0,0.0004975]
[1756081796622,7.76127381,113320.0,113310.0,0.0004975]
[1756081796828,5.6867211,113320.0,113310.0,0.0004975]
[1756081797018,7.08357099,113320.0,113310.0,0.0004975]
[1756081797256,7.09994543,113320.0,113310.0,0.0004975]
[1756081797436,6.94926543,113320.0,113310.0,0.0004975]
[1756081797593,7.10002543,113320.0,113310.0,0.0004975]
[1756081797802,7.10010543,113320.0,113310.0,0.0004975]
[1756081798615,7.10010543,113320.0,113310.0,0.0024775]
[1756081798818,7.10010543,113320.0,113310.0,0.0004975]
[1756081800335,6.75701543,113320.0,113310.0,0.0056075]
[1756081800547,6.60425543,113320.0,113310.0,0.0056075]
[1756081800762,6.60425543,113320.0,113310.0,0.0004975]
[1756081800763,6.93289099,113320.0,113310.0,0.0004975]
[1756081800975,6.74361099,113320.0,113310.0,0.0024775]
[1756081801181,7.10000412,113320.0,113310.0,0.0024775]
[1756081801594,7.1000044,113320.0,113310.0,0.0004975]
[1756081801959,7.08361099,113320.0,113310.0,0.0004975]
[1756081802133,7.10000482,113320.0,113310.0,0.0004975]
[1756081803567,7.08619007,113320.0,113310.0,0.0004975]
[1756081805520,7.77770764,113320.0,113310.0,0.0004975]
[1756081805924,7.08631007,113320.0,113310.0,0.0004975]
[1756081806339,6.93547007,113320.0,113310.0,0.0004975]
[1756081806546,7.08631007,113320.0,113310.0,0.0004975]
[1756081806744,7.0837308,113320.0,113310.0,0.0004975]
[1756081807754,7.80137171,113320.0,113310.0,0.0004975]
[1756081807959,7.10985414,113320.0,113310.0,0.0004975]
[1756081808583,7.10011697,113320.0,113310.0,0.0004975]
[1756081808844,7.09911697,113320.0,113310.0,0.0004975]
[1756081809253,7.10111697,113320.0,113310.0,0.0004975]
[1756081809381,7.10411697,113320.0,113310.0,0.0004975]
[1756081809785,7.10459697,113320.0,113310.0,0.0004975]
[1756081811045,7.10459554,113320.0,113310.0,0.0004975]
[1756081811260,7.10459549,113320.0,113310.0,0.0004975]
[1756081812802,7.0882108,113320.0,113310.0,0.0004975]
[1756081817275,7.80585171,113320.0,113310.0,0.0004975]
[1756081817701,7.11433414,113320.0,113310.0,0.0004975]
[1756081817910,7.0882108,113320.0,113310.0,0.0004975]
[1756081818295,6.96301414,113320.0,113310.0,0.0004975]
[1756081818535,7.11461414,113320.0,113310.0,0.0004975]
[1756081819802,6.96301414,113320.0,113310.0,0.0004975]
[1756081820013,7.0884908,113320.0,113310.0,0.0004975]
[1756081821871,7.0824908,113320.0,113310.0,0.0004975]
[1756081822288,7.0864908,113320.0,113310.0,0.0004975]
[1756081822535,6.9348908,113320.0,113310.0,0.0004975]
[1756081822974,7.0870108,113320.0,113310.0,0.0004975]
[1756081827035,7.77852837,113320.0,113310.0,0.0004975]
[1756081827268,7.0870108,113320.0,113310.0,0.0004975]
[1756081827571,7.61948604,113320.0,113250.0,0.07977359]
[1756081827823,1.03151757,113260.0,113250.0,0.00086597]
[1756081828081,1.03151757,113260.0,113250.0,0.00287597]
[1756081828082,1.36022241,113260.0,113250.0,0.00287597]
[1756081828334,1.38677241,113260.0,113250.0,0.00287597]
[1756081828583,1.38677241,113260.0,113250.0,0.00601597]
[1756081829334,1.23465241,113260.0,113250.0,0.00601597]
[1756081829585,1.38677241,113260.0,113250.0,0.00701597]
[1756081829847,1.38677241,113260.0,113250.0,0.00901597]
[1756081830261,1.38677241,113260.0,113250.0,0.00801597]
[1756081831012,2.08511473,113260.0,113250.0,0.00801597]
[1756081831182,6.55986748,113260.0,113250.0,0.00086597]
[1756081831381,6.55677748,113260.0,113250.0,0.00287597]
[1756081831600,5.86319991,113260.0,113250.0,0.00601597]
[1756081831829,1.2810655,113260.0,113250.0,0.00901597]
[1756081832071,1.4330655,113260.0,113250.0,0.00901597]
[1756081832308,1.4330655,113260.0,113250.0,0.00801597]
[1756081832549,1.4330655,113260.0,113250.0,0.00601597]
[1756081832792,1.25648066,113260.0,113250.0,0.00601597]
[1756081833038,1.4330655,113260.0,113250.0,0.00701597]
[1756081833502,1.4330655,113260.0,113250.0,0.00801597]
[1756081833968,1.4065155,113260.0,113250.0,0.00801597]
[1756081834393,1.4065155,113260.0,113250.0,0.00701597]
[1756081834624,1.4065155,113260.0,113250.0,0.00801597]
[1756081838269,1.22993066,113260.0,113250.0,0.00801597]
[1756081838470,1.4065155,113260.0,113250.0,0.00801597]
[1756081838839,0.38641309,113260.0,113250.0,0.00801597]
[1756081839061,1.4066355,113260.0,113250.0,0.00801597]
[1756081839287,1.23005066,113260.0,113250.0,0.00801597]
[1756081840438,1.07793066,113260.0,113250.0,0.00801597]
[1756081840678,0.00024997,113270.0,113260.0,0.17658484]
[1756081840891,0.00024997,113270.0,113260.0,0.31364894]
[1756081842560,0.00024997,113270.0,113260.0,0.33509796]
[1756081842830,0.00024997,113270.0,113260.0,1.17869553]
[1756081843058,0.00024997,113270.0,113260.0,0.48917796]
[1756081843281,0.00024997,113270.0,113260.0,0.73921796]
[1756081843736,0.00024997,113270.0,113260.0,0.73721796]
[1756081844189,0.00024997,113270.0,113260.0,0.58109796]
[1756081844416,0.00024997,113270.0,113260.0,0.58309796]
[1756081844671,0.00024997,113270.0,113260.0,0.58109796]
[1756081844896,0.00024997,113270.0,113260.0,0.73325796]
[1756081845117,0.00024997,113270.0,113260.0,0.73925796]
[1756081845374,0.00024997,113270.0,113260.0,0.73961796]
[1756081845595,0.00024997,113270.0,113260.0,0.73761796]
[1756081845886,0.00024997,113270.0,113260.0,0.74061796]
[1756081851049,0.00024997,113270.0,113260.0,0.75830796]
[1756081856116,0.00024997,113270.0,113260.0,1.53213553]
[1756081856332,0.00024997,113270.0,113260.0,1.18061796]
[1756081856533,0.00024997,113270.0,113260.0,1.87213553]
[1756081858863,0.00024997,113270.0,113260.0,1.18061796]
[1756081859071,0.00024997,113270.0,113260.0,1.87213553]
[1756081859487,0.00024997,113270.0,113260.0,1.71961553]
[1756081859697,0.00024997,113270.0,113260.0,1.18065796]
[1756081861100,0.00024997,113270.0,113260.0,1.02809796]
[1756081861306,0.00024997,113270.0,113260.0,1.18069796]
[1756081861522,0.00024997,113270.0,113260.0,1.24857796]
[1756081863033,0.00024997,113270.0,113260.0,1.09597796]
[1756081863250,0.00024997,113270.0,113260.0,1.24849796]
[1756081863877,0.00233997,113270.0,113260.0,0.34388475]
[1756081864100,0.69702754,113270.0,113260.0,0.49652475]
[1756081864308,1.03702754,113270.0,113260.0,0.007]
[1756081864515,1.21359679,113270.0,113260.0,0.15976]
[1756081864994,1.21359679,113270.0,113260.0,0.15576]
[1756081865208,1.21359679,113270.0,113260.0,0.1786106]
[1756081865431,1.21359679,113270.0,113260.0,0.1776106]
[1756081866085,1.21359679,113270.0,113260.0,0.1953006]
[1756081866388,1.21359679,113270.0,113260.0,0.1756106]
[1756081866928,1.25434297,113270.0,113260.0,0.1766106]
[1756081867343,1.25434297,113270.0,113260.0,0.001]
[1756081867607,1.25434297,113270.0,113260.0,0.15372]
[1756081868261,1.25434297,113270.0,113260.0,0.15368]
[1756081868863,1.25434297,113270.0,113260.0,0.001]
[1756081869073,1.25434297,113270.0,113260.0,0.15364]
[1756081871105,1.248833,113270.0,113260.0,0.1758786]
[1756081871342,1.250573,113270.0,113260.0,0.1758786]
[1756081872489,1.07400375,113270.0,113260.0,0.1758786]
[1756081872975,1.250573,113270.0,113260.0,0.1758786]
[1756081873855,1.26439099,113270.0,113260.0,0.1758786]
[1756081874310,1.22364481,113270.0,113260.0,0.1758786]
[1756081874530,1.04707556,113270.0,113260.0,0.1758786]
[1756081874774,1.22364481,113270.0,113260.0,0.1758786]
[1756081874972,1.22364481,113270.0,113260.0,0.15364]
[1756081875860,1.04533556,113270.0,113260.0,0.15892]
[1756081876092,1.04707556,113270.0,113260.0,0.15892]
[1756081876278,1.04707556,113270.0,113260.0,0.15364]
[1756081876678,1.22364481,113270.0,113260.0,0.15364]
[1756081878491,1.04533556,113270.0,113260.0,0.19913459]
[1756081879299,1.04707556,113270.0,113260.0,0.19913459]
[1756081879571,1.22364481,113270.0,113260.0,0.19913459]
[1756081879684,1.22364481,113270.0,113260.0,0.04121459]
[1756081879918,1.22364481,113270.0,113260.0,0.15332]
[1756081880600,1.20982682,113270.0,113260.0,0.15332]
[1756081880808,0.51830925,113270.0,113260.0,0.15332]
[1756081881022,1.20982682,113270.0,113260.0,0.15332]
[1756081882448,1.03325757,113270.0,113260.0,0.15648]
[1756081882794,0.026547,113280.0,113260.0,0.46445954]
[1756081883015,0.69151757,113270.0,113260.0,0.45909223]
[1756081883739,0.69151757,113270.0,113260.0,0.46225223]
[1756081884370,0.69151757,113270.0,113260.0,0.46125223]
[1756081885012,0.69325757,113270.0,113260.0,0.23920475]
[1756081885229,0.86982682,113270.0,113260.0,0.23904475]
[1756081885450,0.86982682,113270.0,113260.0,0.15228]
[1756081885674,0.87091682,113270.0,113260.0,0.15328]
[1756081886502,0.87091682,113270.0,113260.0,0.001]
[1756081886724,0.87091682,113270.0,113260.0,0.15332]
[1756081887033,1.36315682,113270.0,113260.0,0.001]
[1756081888375,6.52439714,113270.0,113260.0,0.001]
[1756081889232,5.144903,113270.0,113260.0,0.001]
[1756081889448,6.52793814,113270.0,113260.0,0.001]
[1756081890479,6.52993814,113270.0,113260.0,0.001]
[1756081891104,0.17658484,113260.0,113250.0,0.00086597]
[1756081891328,6.03217273,113260.0,113250.0,0.00086597]
[1756081893407,6.03317273,113260.0,113250.0,0.00086597]
[1756081893776,6.04699325,113260.0,113250.0,0.00086597]
[1756081895491,6.04944425,113260.0,113250.0,0.00086597]
[1756081895705,5.42380193,113260.0,113250.0,0.00086597]
[1756081896525,0.88820393,113260.0,113250.0,0.00612597]
[1756081896739,1.04104393,113260.0,113250.0,0.00086597]
[1756081898738,1.04104393,113260.0,113250.0,0.00612597]
[1756081898938,1.04104393,113260.0,113250.0,0.00401597]
[1756081899149,1.04104393,113260.0,113250.0,0.00086597]
[1756081900646,1.02722341,113260.0,113250.0,0.00086597]
[1756081902058,6.10266898,113260.0,113250.0,0.00086597]
[1756081902296,6.18955373,113260.0,113250.0,0.00086597]
[1756081903427,6.52955373,113260.0,113250.0,0.00086597]
[1756081903909,6.57718574,113260.0,113250.0,0.00086597]
[1756081904334,6.56073672,113260.0,113250.0,0.00086597]
[1756081904788,6.56373672,113260.0,113250.0,0.00086597]
[1756081905007,6.56173672,113260.0,113250.0,0.00086597]
[1756081905228,6.56373672,113260.0,113250.0,0.00086597]
[1756081906148,6.56453672,113260.0,113250.0,0.00086597]
[1756081907573,6.54817526,113260.0,113250.0,0.00086597]
[1756081907795,6.63414898,113260.0,113250.0,0.00086597]
[1756081908901,6.63414898,113260.0,113200.0,0.0004]
[1756081908902,0.51666283,113210.0,113200.0,0.0004]
[1756081909126,0.51666283,113210.0,113200.0,0.00086873]
[1756081909127,2.05503797,113210.0,113200.0,0.00086873]
[1756081909344,2.14192272,113210.0,113200.0,0.00086873]
[1756081909568,6.52585072,113210.0,113200.0,0.00086873]
[1756081909759,6.56624406,113210.0,113200.0,0.00086873]
[1756081910017,6.60642291,113210.0,113200.0,0.00086873]
[1756081910260,6.61571553,113210.0,113200.0,0.00086873]
[1756081910481,6.61667553,113210.0,113200.0,0.00086873]
[1756081910696,6.44928919,113210.0,113200.0,0.00086873]
[1756081910909,6.60180919,113210.0,113200.0,0.00086873]
[1756081911138,6.59980919,113210.0,113200.0,0.00086873]
[1756081911364,6.60480919,113210.0,113200.0,0.00086873]
[1756081911572,6.60476919,113210.0,113200.0,0.00086873]
[1756081912417,6.62982441,113210.0,113200.0,0.00086873]
[1756081913288,6.62982441,113210.0,113200.0,1e-08]
[1756081913289,7.3659095,113210.0,113200.0,1e-08]
[1756081913522,0.54173365,113200.0,113190.0,8e-05]
[1756081913797,6.53227679,113200.0,113190.0,0.00054932]
[1756081913982,6.35225158,113200.0,113190.0,0.00054932]
[1756081914203,6.50649158,113200.0,113190.0,0.00369932]
[1756081914420,6.35225158,113200.0,113190.0,0.00580932]
[1756081914626,6.50471158,113200.0,113190.0,0.00580932]
[1756081914839,6.35051158,113200.0,113190.0,0.00580932]
[1756081915076,5.12191644,113200.0,113190.0,0.00580932]
[1756081915300,6.59383633,113200.0,113190.0,0.00580932]
[1756081915512,6.43939633,113200.0,113190.0,0.00580932]
[1756081915732,6.59383633,113200.0,113190.0,0.00580932]
[1756081915940,6.59409633,113200.0,113190.0,0.00580932]
[1756081916143,6.59383633,113200.0,113190.0,0.00580932]
[1756081916374,6.59309633,113200.0,113190.0,0.00580932]
[1756081916789,6.43865633,113200.0,113190.0,0.00469932]
[1756081916999,6.59349633,113200.0,113190.0,0.00469932]
[1756081917423,5.86802705,113200.0,113190.0,0.00680932]
[1756081917647,6.02286705,113200.0,113190.0,0.00680932]
[1756081918101,6.02282705,113200.0,113190.0,0.00680932]
[1756081918757,6.02415705,113200.0,113190.0,0.00154932]
[1756081920347,6.02282705,113200.0,113190.0,0.00679932]
[1756081920779,6.02456705,113200.0,113190.0,0.00679932]
[1756081921223,6.02456705,113200.0,113190.0,0.00154932]
[1756081921454,6.02565705,113200.0,113190.0,0.00154932]
[1756081921699,6.09674982,113200.0,113190.0,0.00154932]
[1756081922136,6.06963132,113200.0,113190.0,0.00154932]
[1756081923007,6.06863132,113200.0,113190.0,0.00054932]
[1756081923431,6.07063132,113200.0,113190.0,0.00054932]
[1756081923863,5.27179508,113200.0,113190.0,0.00054932]
[1756081924079,6.06554189,113200.0,113190.0,0.00054932]
[1756081924294,6.04048667,113200.0,113190.0,0.00054932]
[1756081924509,6.03939667,113200.0,113190.0,0.00054932]
[1756081924976,5.88285667,113200.0,113190.0,0.00579932]
[1756081925206,6.04791667,113200.0,113190.0,0.00579932]
[1756081925438,6.04900667,113200.0,113190.0,0.00054932]
[1756081925659,6.04791667,113200.0,113190.0,0.00054932]
[1756081926086,6.04691667,113200.0,113190.0,0.00054932]
[1756081926302,5.88259667,113200.0,113190.0,0.00579932]
[1756081926512,5.70425667,113200.0,113190.0,0.00679932]
[1756081926962,5.70599667,113200.0,113190.0,0.00154932]
[1756081927398,6.04599667,113200.0,113190.0,0.00154932]
[1756081927608,6.04708667,113200.0,113190.0,0.00154932]
[1756081928287,6.05701717,113200.0,113190.0,0.00154932]
[1756081928706,6.05592717,113200.0,113190.0,0.00154932]
[1756081929356,6.05593099,113200.0,113190.0,0.00154932]
[1756081929568,6.05693099,113200.0,113190.0,0.00154932]
[1756081929803,6.05685099,113200.0,113190.0,0.00054932]
[1756081930017,6.05781099,113200.0,113190.0,0.00054932]
[1756081930236,5.24614513,113200.0,113190.0,0.00054932]
[1756081930460,6.05881099,113200.0,113190.0,0.00054932]
[1756081931152,4.74012513,113200.0,113190.0,0.00579932]
[1756081931377,5.70971216,113200.0,113190.0,0.00579932]
[1756081932043,5.45774741,113200.0,113190.0,0.00579932]
[1756081932263,1.59477541,113200.0,113190.0,0.00579932]
[1756081932481,1.57994579,113200.0,113190.0,0.00579932]
[1756081932711,1.60060484,113200.0,113190.0,0.00579932]
[1756081932936,1.60060484,113200.0,113190.0,0.00154932]
[1756081932937,6.03686254,113200.0,113190.0,0.00154932]
[1756081933168,6.03686254,113200.0,113190.0,0.00679932]
[1756081933419,6.03686254,113200.0,113190.0,0.00054932]
[1756081933634,6.03586254,113200.0,113190.0,0.00054932]
[1756081933852,6.03586254,113200.0,113190.0,0.00454932]
[1756081934291,6.03586254,113200.0,113190.0,0.00254932]
[1756081934536,6.03586254,113200.0,113190.0,0.00779932]
[1756081934728,6.04403089,113200.0,113190.0,0.00568932]
[1756081934951,6.04403089,113200.0,113190.0,0.00779932]
[1756081935168,5.86880254,113200.0,113190.0,0.00779932]
[1756081935380,6.04827078,113200.0,113190.0,0.00779932]
[1756081935604,6.04829319,113200.0,113190.0,0.00779932]
[1756081935838,5.23562733,113200.0,113190.0,0.00779932]
[1756081936060,6.04829319,113200.0,113190.0,0.00779932]
[1756081936274,6.0482932,113200.0,113190.0,0.00779932]
[1756081936487,6.0482932,113200.0,113190.0,0.00879932]
[1756081936738,0.78037059,113200.0,113190.0,0.00879932]
[1756081936971,1.59303645,113200.0,113190.0,0.00879932]
[1756081937731,0.19302235,113200.0,113190.0,0.00879932]
[1756081937946,0.01634391,113200.0,113190.0,0.01100799]
[1756081938173,0.01634391,113200.0,113190.0,0.29357943]
[1756081938388,0.01634391,113200.0,113190.0,0.11467671]
[1756081938606,0.01634391,113200.0,113190.0,0.11267671]
[1756081939038,0.39856789,113210.0,113190.0,0.11467671]
[1756081939260,1.21941613,113210.0,113190.0,0.10953671]
[1756081939479,1.58069292,113210.0,113200.0,0.00307009]
[1756081939723,1.58069292,113210.0,113200.0,0.00518009]
[1756081940402,0.51667844,113200.0,113190.0,0.00054932]
[1756081940615,1.34570886,113200.0,113190.0,0.00665932]
[1756081940851,1.35415207,113200.0,113190.0,0.00665932]
[1756081941313,5.81047882,113200.0,113190.0,0.00454932]
[1756081941538,5.02286831,113200.0,113190.0,0.00454932]
[1756081941764,5.02286831,113200.0,113190.0,0.00054932]
[1756081941991,5.81047895,113200.0,113190.0,0.00054932]
[1756081942194,5.01673214,113200.0,113190.0,0.00054932]
[1756081942474,5.81047895,113200.0,113190.0,0.00054932]
[1756081942735,4.99766309,113200.0,113190.0,0.00054932]
[1756081942974,5.80906895,113200.0,113190.0,0.00579932]
[1756081943208,5.98382895,113200.0,113190.0,0.00579932]
[1756081943455,5.81106895,113200.0,113190.0,0.00579932]
[1756081943673,5.98382895,113200.0,113190.0,0.00579932]
[1756081943901,5.99765743,113200.0,113190.0,0.00579932]
[1756081944408,5.73601268,113200.0,113190.0,0.00579932]
[1756081944618,1.53525734,113200.0,113190.0,0.00579932]
[1756081945275,1.51889278,113200.0,113190.0,0.00579932]
[1756081945499,1.53525973,113200.0,113190.0,0.00579932]
[1756081945795,0.38235387,113200.0,113190.0,0.00579932]
[1756081946003,1.19514134,113200.0,113190.0,0.00579932]
[1756081946216,1.19414142,113200.0,113190.0,0.00579932]
[1756081946447,1.19414142,113200.0,113190.0,0.00779932]
[1756081946673,1.19514287,113200.0,113190.0,0.00579932]
[1756081946882,0.20579857,113200.0,113190.0,0.00579932]
[1756081947093,1.19514287,113200.0,113190.0,0.00779932]
[1756081947508,1.19514287,113200.0,113190.0,0.00979932]
[1756081948180,5.90369487,113200.0,113190.0,0.00254932]
[1756081948387,5.09076901,113200.0,113190.0,0.00752932]
[1756081948627,5.90343487,113200.0,113190.0,0.01152932]
[1756081948836,5.90369487,113200.0,113190.0,0.00654932]
[1756081949064,5.90483487,113200.0,113190.0,0.00654932]
[1756081949266,5.97279487,113200.0,113190.0,0.00054932]
[1756081949482,5.97165487,113200.0,113190.0,0.00054932]
[1756081949685,5.97165487,113200.0,113190.0,0.00154932]
[1756081950145,5.97984215,113200.0,113190.0,0.00154932]
[1756081950362,6.00640949,113200.0,113190.0,0.00154932]
[1756081950573,5.99258101,113200.0,113190.0,0.00154932]
[1756081951417,5.99372101,113200.0,113190.0,0.00154932]
[1756081951619,5.2679399,113200.0,113190.0,0.00154932]
[1756081951833,6.07946576,113200.0,113190.0,0.00154932]
[1756081952492,6.08060576,113200.0,113190.0,0.00054932]
[1756081952714,6.08160576,113200.0,113190.0,0.00054932]
[1756081952902,6.08046576,113200.0,113190.0,0.00054932]
[1756081953369,6.08160576,113200.0,113190.0,0.00054932]
[1756081953599,6.08046576,113200.0,113190.0,0.00054932]
[1756081953840,6.10666098,113200.0,113190.0,1e-08]
[1756081954060,6.12049068,113200.0,113190.0,1e-08]
[1756081954246,6.09543546,113200.0,113190.0,1e-08]
[1756081954517,5.91869546,113200.0,113190.0,1e-08]
[1756081954725,5.2840296,113200.0,113190.0,1e-08]
[1756081954937,5.2840296,113200.0,113190.0,0.00498001]
[1756081954938,5.90332537,113200.0,113190.0,0.00498001]
[1756081955198,6.09758282,113200.0,113190.0,0.00498001]
[1756081955404,5.09758838,113200.0,113190.0,0.00498001]
[1756081955623,5.27546838,113200.0,113190.0,0.00498001]
[1756081955839,6.08917424,113200.0,113190.0,0.00498001]
[1756081956503,6.08817424,113200.0,113190.0,0.00498001]
[1756081956908,6.08717424,113200.0,113190.0,0.00498001]
[1756081957539,1.45407749,113200.0,113190.0,0.00498001]
[1756081957759,1.63151749,113200.0,113190.0,0.00498001]
[1756081958180,1.08751049,113200.0,113190.0,0.00498001]
[1756081958391,1.26491049,113200.0,113190.0,0.00498001]
[1756081958609,1.08751049,113200.0,113190.0,0.00498001]
[1756081958827,1.26475049,113200.0,113190.0,0.00498001]
[1756081959045,1.60475049,113200.0,113190.0,0.00498001]
[1756081959258,1.60475049,113200.0,113190.0,0.00598001]
[1756081959472,0.7620706,113200.0,113190.0,0.00598001]
[1756081959693,1.57473646,113200.0,113190.0,0.00598001]
[1756081959906,1.57509646,113200.0,113190.0,0.00598001]
[1756081960389,1.57509646,113200.0,113190.0,0.00698001]
[1756081961461,1.56126676,113200.0,113190.0,0.00698001]
[1756081962334,1.16904235,113200.0,113190.0,0.00698001]
[1756081962547,1.32962586,113200.0,113190.0,0.00698001]
[1756081962758,1.15266586,113200.0,113190.0,0.00698001]
[1756081963401,1.15266586,113200.0,113190.0,0.27055881]
[1756081964283,1.15266586,113200.0,113190.0,0.09386476]
[1756081964693,1.15266586,113200.0,113190.0,0.09186476]
[1756081964904,0.34,113200.0,113190.0,0.09486476]
[1756081965134,1.3293443,113200.0,113190.0,0.09686476]
[1756081965397,1.15266586,113200.0,113190.0,0.09686476]
[1756081966691,1.3293443,113200.0,113190.0,0.00998001]
[1756081966913,1.5059043,113200.0,113190.0,0.00998001]
[1756081967123,1.5077543,113200.0,113190.0,0.00795001]
[1756081967331,1.5077543,113200.0,113190.0,0.00500001]
[1756081967739,1.5077543,113200.0,113190.0,1e-08]
[1756081967998,5.8772063,113200.0,113190.0,1e-08]
[1756081968237,5.96409105,113200.0,113190.0,0.00300001]
[1756081968911,0.34,113170.0,113150.0,0.18559362]
[1756081969133,0.34,113170.0,113160.0,0.08891475]
[1756081969579,0.34,113170.0,113160.0,0.09186475]
[1756081970347,1.15266586,113170.0,113160.0,0.09186475]